Cogmind - Beta 14 @@@ ROGUE MODE // 2024.11.15 @ 06:32:31 Player: Fangrelle Result: Destroyed by P-60 Hacker with Shock Rifle Performance ------------- Evolutions (3) 1500 Regions Visited (6) 1200 Robots Destroyed (143) 715 Value Destroyed (3808) 3808 Prototype IDs (33) 660 Alien Tech Used (0) 0 Bonus (700) 700 TOTAL SCORE: 8583 Bonus ------- High Alert Combat Kills 400 Aligned with FarCom 300 Cogmind --------- Core Integrity 0/700 Matter 300/300 Energy 138/150 System Corruption 6% Temperature Cool (0) Movement Core (50) Location -7/Factory Parts ------- > --- POWER (1) -------- Micro Nuclear Core > --- PROPULSION (5) --- (None) > --- UTILITY (5) ------ Lightpack 2.0 Advanced Weight Redist. System System Shield > --- WEAPON (2) ------- (None) > --- INVENTORY (40) --- Armored Huge Wheel Improved Cesium-ion Thruster Improved Heat Sink Advanced Weight Redist. System Advanced ECM Suite Improved Medium Armor Plating System Shield Component Analysis Suite Bomb Drone Bay (16/16) Heavy EM Shotgun Heavy EM Shotgun Gatling Laser Gatling Laser Gatling Laser Gatling Laser Minigun Gauss Rifle Gauss Rifle Gauss Rifle Improved Grenade Launcher Improved Datajack Remote Datajack Peak State ------------ > --- POWER ------------ Micro Nuclear Core > --- PROPULSION ------- Aerolev Unit Improved Airjet Improved Airjet Improved Cesium-ion Thruster Improved Cesium-ion Thruster > --- UTILITY ---------- Lightpack 2.0 Improved Medium Armor Plating System Shield > --- WEAPON ----------- Gatling Laser > --- INVENTORY -------- Improved Heat Sink Advanced Weight Redist. System Advanced Weight Redist. System Structural Scanner Modified TNC Improved Weapon Shielding Improved Medium Armor Plating System Shield Component Analysis Suite Bomb Drone Bay Heavy EM Shotgun Heavy EM Shotgun Precision Beam Rifle Precision Beam Rifle Gatling Laser Gatling Laser Gatling Laser Gatling Laser Autogun Autogun Minigun Gauss Rifle Gauss Rifle Gauss Rifle Improved Grenade Launcher Improved Datajack Remote Datajack Mining Laser Scythe Scythe [Rating: 80] Favorites ----------- Power Light Angular Momentum Engine Engine Light Angular Momentum Engine Power Core Light Nuclear Core Propulsion Light Treads Treads Light Treads Leg Aluminum Leg Wheel Compact Wheel Hover Unit Aerolev Unit Flight Unit Improved Cesium-ion Thruster Utility Large Storage Unit Device Improved Heat Sink Storage Large Storage Unit Hackware System Shield Protection Light Armor Plating Weapon Light Cannon Energy Gun Precision Beam Rifle Ballistic Gun Gauss Rifle Ballistic Cannon Light Cannon Launcher Improved Grenade Launcher Build | -11 -10 -10 -10 -9 -8 -7 ------- Run | Yrd Mat Min Exi Min Mat Fac Slots Evolved 6 | . . . . . 4 2 Power . | . . . . . . . Propulsion 3 | . . . . . 2 1 Utility 3 | . . . . . 2 1 Weapon . | . . . . . . . Parts Attached 123 | . 18 1 1 . 56 47 Power 13 | . 2 1 . . 4 6 Engine 9 | . 2 1 . . 4 2 Core 4 | . . . . . . 4 Reactor . | . . . . . . . Propulsion 35 | . 5 . . . 19 11 Treads 7 | . 3 . . . 4 . Leg 12 | . 2 . . . 10 . Wheel 3 | . . . . . 2 1 Hover 11 | . . . . . 3 8 Flight 2 | . . . . . . 2 Utility 38 | . 3 . 1 . 21 13 Device 15 | . 2 . . . 6 7 Storage 7 | . 1 . 1 . 3 2 Processor . | . . . . . . . Hackware 2 | . . . . . 1 1 Protection 14 | . . . . . 11 3 Artifact . | . . . . . . . Weapon 37 | . 8 . . . 12 17 Energy Gun 17 | . 6 . . . 3 8 Energy Cannon . | . . . . . . . Ballistic Gun 15 | . . . . . 8 7 Ballistic Cannon 3 | . 2 . . . 1 . Launcher 2 | . . . . . . 2 Special Weapon . | . . . . . . . Impact Weapon . | . . . . . . . Slashing Weapon . | . . . . . . . Piercing Weapon . | . . . . . . . Special Melee Weapon . | . . . . . . . Unidentified Prototypes 10 | . . . . . 6 4 Parts Lost 53 | . 4 1 . . 25 23 Power 7 | . . . . . 3 4 Propulsion 24 | . 2 1 . . 10 11 Utility 10 | . . . . . 6 4 Weapon 12 | . 2 . . . 6 4 Highest Loss Streak 7 | . 3 1 . . 5 7 To Critical Strikes . | . . . . . . . Average Slot Usage (%) 81 | . 98 96 73 71 74 70 Engine 9 | . 14 14 14 14 6 1 Treads 10 | . 10 25 14 14 6 1 Leg 6 | . 17 . . . 13 1 Hover 4 | . . . . . 3 19 Device 7 | . 13 14 2 . 5 5 Storage 11 | . 14 14 13 14 11 7 Protection 3 | . . . . . 8 5 Energy Gun 4 | . 14 . . . 4 5 Ballistic Gun 5 | . 9 . . . 7 8 Ballistic Cannon 12 | . 3 28 28 28 5 . Peak Build Rating 80 | . 11 16 16 16 43 80 Average Rating 24 | . 9 13 15 16 23 59 On Entrance 14 | 6 6 10 15 16 16 33 Naked Turns . | . . . . . . . Heaviest Build 112 | 12 32 36 95 95 112 51 Greatest Support 80 | 20 40 40 20 20 80 45 Greatest Overweight (x) 14 | . 1 1 4 4 14 6 Average Overweight (x) 1 | . . . 2 4 2 . Largest Inventory Capacity 40 | . 15 15 25 25 40 40 Average Capacity 21 | . 14 15 22 25 20 33 Most Carried 33 | . 12 15 20 20 20 33 Average Carried 15 | . 4 14 18 20 16 21 Final Capacity 40 | 8 15 15 25 25 15 40 Final Carried 24 | 6 12 15 20 20 15 24 Class Distribution -------------------- 68% | Mutant 17% | Scavenger-Mutant 14% | Hauler-Mutant Dominant Class ---------------- Mutant | -10/Materials Mutant | -10/Mines Mutant | -10/Exiles Mutant | -9/Mines Mutant | -8/Materials Hauler-Mutant | -7/Factory Resources | -11 -10 -10 -10 -9 -8 -7 ----------- Run | Yrd Mat Min Exi Min Mat Fac Matter Collected 3290 | 200 228 155 . . 1549 1158 Remotely . | . . . . . . . Salvage Created 5119 | . 778 185 . . 2294 1862 Parts 275 | . 50 23 . . 113 89 Haulers Intercepted 7 | . 2 . . . 3 2 Recyclers Shooed 3 | . . . . . 1 2 Parts Field Recycled . | . . . . . . . Retrieved Matter . | . . . . . . . Parts Self-Destructed . | . . . . . . . Prevented . | . . . . . . . Kills | -11 -10 -10 -10 -9 -8 -7 ------- Run | Yrd Mat Min Exi Min Mat Fac Combat Hostiles Destroyed 104 | . 13 12 . . 48 31 Guns 67 | . 9 . . . 32 26 Cannons 29 | . 3 12 . . 14 . AOE 8 | . 1 . . . 2 5 Classes Destroyed 15 | . 7 . . . 7 1 Worker 12 | . 3 . . . 6 3 Builder 4 | . . . . . 1 3 Tunneler 1 | . 1 . . . . . Hauler 7 | . 2 . . . 3 2 Recycler 8 | . . . . . 3 5 Mechanic 1 | . . . . . 1 . Operator 3 | . 1 . . . 1 1 Watcher 6 | . 3 . . . 2 1 Swarmer 40 | . 3 9 . . 14 14 Grunt 49 | . 10 3 . . 24 12 Brawler 1 | . . . . . 1 . Duelist 1 | . . . . . 1 . Sentry 8 | . . . . . 6 2 Hunter 2 | . . . . . 2 . Programmer 3 | . . . . . . 3 Best Kill Streak 7 | . 4 3 . . 7 7 Combat Bots Only 7 | . 3 3 . . 7 6 Max Kills in Single Turn 2 | . 2 1 . . 2 2 Gunslinging . | . . . . . . . Exploded 2 | . 1 . . . 2 1 Melee . | . . . . . . . Uniques/NPCs Destroyed . | . . . . . . . Combat | -11 -10 -10 -10 -9 -8 -7 -------- Run | Yrd Mat Min Exi Min Mat Fac Hostile Shots Fired 870 | . 83 64 . . 358 365 Missed 279 | . 20 17 . . 113 129 Damage Taken 7788 | . 764 451 . . 3406 3167 Core 1443 | . 147 63 . . 531 702 Absorbed by Shields . | . . . . . . . Core Remaining (%) 39 | 100 . . . 16 3 . Volleys Fired 434 | . 76 23 . . 207 128 Largest 2 | . 2 2 . . 2 2 Hottest 160 | . 105 70 . . 105 160 Shots Fired 793 | . 142 46 . . 376 229 Gun 633 | . 136 . . . 272 225 Cannon 156 | . 6 46 . . 104 . Launcher 4 | . . . . . . 4 Special . | . . . . . . . Kinetic 539 | . 86 46 . . 284 123 Thermal 157 | . 21 . . . 71 65 Explosive 4 | . . . . . . 4 Electromagnetic 93 | . 35 . . . 21 37 Robot Hit Streak 21 | . 8 12 . . 21 10 Robot Miss Streak 6 | . 4 3 . . 5 6 Penetration Max 1 | . . . . . 1 1 Secondary Targets 11 | . 1 . . . 6 4 Max Gunslinging Chain 1 | . 1 . . . 1 1 Shots Hit Robots 507 | . 84 23 . . 255 145 Core Hits 250 | . 41 14 . . 105 90 Critical Kills 2 | . . . . . . 2 Critical Parts Destroyed 1 | . . . . . 1 . Critical Strikes 10 | . 3 . . . 5 2 Burn 1 | . . . . . 1 . Destroy 3 | . . . . . 1 2 Blast 4 | . 1 . . . 3 . Corrupt 2 | . 2 . . . . . Melee Attacks . | . . . . . . . Impact . | . . . . . . . Slashing . | . . . . . . . Piercing . | . . . . . . . Sneak Attacks . | . . . . . . . Combat Hostiles . | . . . . . . . Follow-up Attacks . | . . . . . . . Damage Inflicted 9669 | . 1044 484 . . 4829 3312 Guns 7010 | . 867 . . . 3374 2769 Cannons 2026 | . 87 484 . . 1455 . Explosions 631 | . 88 . . . . 543 Melee . | . . . . . . . Ramming 2 | . 2 . . . . . Kinetic 5944 | . 486 484 . . 3657 1317 Thermal 2444 | . 259 . . . 1055 1130 Explosive 402 | . . . . . . 402 Electromagnetic 877 | . 297 . . . 117 463 Impact . | . . . . . . . Slashing . | . . . . . . . Piercing . | . . . . . . . Highest Corruption 6 | . . . . . . 6 Average Corruption 4 | . . . . . . 4 Corruption Purged . | . . . . . . . Corruption Blocked . | . . . . . . . Effects 16 | . . . . . . 16 Message Errors 4 | . . . . . . 4 Matter Fused 7 | . . . . . . 7 Energy Discharges 1 | . . . . . . 1 Data Loss (minor) 1 | . . . . . . 1 Data Loss (major) 1 | . . . . . . 1 Weapon Failures 2 | . . . . . . 2 Overload Shots . | . . . . . . . Overflow Damage 11 | . . 2 . . . 9 Projectiles 2 | . . 2 . . . . Explosions 9 | . . . . . . 9 Melee . | . . . . . . . Knockbacks 16 | . 1 4 . . 11 . Impact . | . . . . . . . Kinetic 15 | . 1 4 . . 10 . Secondary 1 | . . . . . 1 . Self-Inflicted Damage . | . . . . . . . Shots . | . . . . . . . Rammed 1 | . 1 . . . . . Targets Rammed 1 | . 1 . . . . . Kicked . | . . . . . . . Crushed . | . . . . . . . Highest Temperature 605 | . 29 . . . 135 605 Average Temperature 71 | . 8 . . . 38 115 Received Heat Transfer 2667 | . 381 93 . . 1431 762 Effects 14 | . . . . . . 14 Shutdowns 1 | . . . . . . 1 Energy Bleed 2 | . . . . . . 2 Interference 1 | . . . . . . 1 Matter Decay 2 | . . . . . . 2 Short Circuit 2 | . . . . . . 2 Damage (minor) 1 | . . . . . . 1 Damage (major) 5 | . . . . . . 5 Siege Activations . | . . . . . . . Robots Corrupted . | . . . . . . . Combat Hostiles . | . . . . . . . Parts Fried . | . . . . . . . Impact Corruptions . | . . . . . . . Robots Melted . | . . . . . . . Combat Hostiles . | . . . . . . . Parts Melted 6 | . . . . . . 6 Heat Transferred 5046 | . 485 . . . 2368 2193 Parts Sabotaged . | . . . . . . . Parts Stolen . | . . . . . . . Parts Stripped . | . . . . . . . Power Chain Reactions 4 | . 2 . . . . 2 Alert | -11 -10 -10 -10 -9 -8 -7 ------- Run | Yrd Mat Min Exi Min Mat Fac Peak Influence 807 | . 193 186 . . 658 807 Initial 298 | . . 26 . . . 298 Average 226 | . 79 49 . . 276 463 Maximum Alert Level 3 | . . . . . 2 3 Low Security (%) 59 | . 100 100 . 100 49 . Level 1 16 | . . . . . 24 37 Level 2 22 | . . . . . 26 57 Level 3 1 | . . . . . . 5 Level 4 . | . . . . . . . Level 5 . | . . . . . . . High Security . | . . . . . . . Max Security . | . . . . . . . Squads Dispatched 19 | . 2 . . . 8 9 Investigation 3 | . 1 . . . 1 1 Extermination 1 | . . . . . . 1 Reinforcement 12 | . 1 . . . 4 7 Assault . | . . . . . . . Garrison 3 | . . . . . 3 . Intercept . | . . . . . . . Searches Triggered . | . . . . . . . Construction Impeded 1 | . . . . . 1 . Haulers Reinforced 1 | . . . . . . 1 Active Scanning Responses . | . . . . . . . Cargo Convoy Interrupts 1 | . . . . . . 1 Stealth | -11 -10 -10 -10 -9 -8 -7 --------- Run | Yrd Mat Min Exi Min Mat Fac Distress Signals 3 | . 1 . . . 2 . Communications Jammed . | . . . . . . . Distress Signals . | . . . . . . . Times Spotted 158 | . 23 16 . . 54 65 Peak Tracking Total 13 | . 3 3 . . 6 13 Tactical Retreats 7 | . . . . . 1 6 Traps | -11 -10 -10 -10 -9 -8 -7 ------- Run | Yrd Mat Min Exi Min Mat Fac Traps Triggered 4 | . 3 . . . 1 . Indirectly . | . . . . . . . Trap Hack Attempts . | . . . . . . . Triggered . | . . . . . . . Disarmed . | . . . . . . . Reprogrammed . | . . . . . . . Reused 3 | . . 1 . . 2 . Traps Extracted . | . . . . . . . Installed 5 | . . 1 . . 4 . Triggered 3 | . . 1 . . 2 . Most Traps Carried 4 | . . 4 4 4 4 . Machines | -11 -10 -10 -10 -9 -8 -7 ---------- Run | Yrd Mat Min Exi Min Mat Fac Machines Disabled 5 | . 1 . . . 4 . Max in Single Turn 1 | . 1 . . . 1 . Machines Repaired . | . . . . . . . Machines Dismantled . | . . . . . . . Machines Sabotaged . | . . . . . . . Overloaded Fab Kills . | . . . . . . . Hacking | -11 -10 -10 -10 -9 -8 -7 --------- Run | Yrd Mat Min Exi Min Mat Fac Machines Accessed 22 | . 7 2 2 . 3 8 Terminals 14 | . 6 1 . . 2 5 Fabricators 1 | . . . . . . 1 Repair Stations . | . . . . . . . Recycling Units 3 | . 1 . . . 1 1 Scanalyzers 1 | . . . . . . 1 Garrison Access . | . . . . . . . Total Hacks 53 | . 16 2 5 . 11 19 Successful 30 | . 8 2 5 . 4 11 Failed 23 | . 8 . . . 7 8 Catastrophic 2 | . . . . . 2 . Database Lockouts . | . . . . . . . Manual 35 | . 14 . 1 . 8 12 Terminals 35 | . 13 1 . . 8 13 Fabricators 1 | . . . . . . 1 Repair Stations . | . . . . . . . Recycling Units 9 | . 3 . . . 3 3 Scanalyzers 2 | . . . . . . 2 Garrison Access . | . . . . . . . Terminal Hacks 10 | . . 2 5 . 1 2 Record 4 | . . . 4 . . . Open Door 1 | . . 1 . . . . Open DSF 2 | . . . . . . 2 Level Access Points 1 | . . 1 . . . . Alert Level 1 | . . . . . 1 . Derelict Proto ID Bank 1 | . . . 1 . . . Fabricator Hacks 1 | . . . . . . 1 Network Status 1 | . . . . . . 1 Repair Station Hacks . | . . . . . . . Recycling Unit Hacks 3 | . 1 . . . 1 1 Report Inventory 3 | . 1 . . . 1 1 Scanalyzer 1 | . . . . . . 1 Insert Component 1 | . . . . . . 1 Garrison Access Hacks . | . . . . . . . Unauthorized Hacks 15 | . 7 . . . 2 6 Terminals 14 | . 6 . . . 2 6 Assimilate 4 | . 1 . . . 1 2 Botnet 8 | . 4 . . . 1 3 Operators 1 | . 1 . . . . . Skim 1 | . . . . . . 1 Fabricators . | . . . . . . . Repair Stations . | . . . . . . . Recycling Units 1 | . 1 . . . . . Tunnel 1 | . 1 . . . . . Scanalyzers . | . . . . . . . Garrison Access . | . . . . . . . Data Cores Recovered . | . . . . . . . Used . | . . . . . . . Hacking Detections 12 | . 6 . . . 2 4 Full Trace Events 2 | . . . . . 1 1 Feedback Events . | . . . . . . . Feedback Blocked . | . . . . . . . Robot Schematics Acquired . | . . . . . . . Robots Built . | . . . . . . . Authchips . | . . . . . . . Time . | . . . . . . . Total Robot Build Rating . | . . . . . . . Part Schematics Acquired . | . . . . . . . Parts Built . | . . . . . . . Authchips . | . . . . . . . Time . | . . . . . . . Total Part Build Rating . | . . . . . . . Parts Repaired . | . . . . . . . Time . | . . . . . . . Parts Recycled . | . . . . . . . Recycled Matter . | . . . . . . . Retrieved Matter . | . . . . . . . Retrieved Components . | . . . . . . . Parts Scanalyzed 1 | . . . . . . 1 Part Schematics Acquired . | . . . . . . . Parts Damaged 1 | . . . . . . 1 Bothacking | -11 -10 -10 -10 -9 -8 -7 ------------ Run | Yrd Mat Min Exi Min Mat Fac Used RIF Installer . | . . . . . . . Robots Hacked . | . . . . . . . Non-combat . | . . . . . . . Combat . | . . . . . . . Robot Hacks Applied . | . . . . . . . Relay Couplers Released . | . . . . . . . Fabnet Peak Effective % . | . . . . . . . Robots Rewired . | . . . . . . . Allies Hacked . | . . . . . . . Hacks Repelled . | . . . . . . . Allies | -11 -10 -10 -10 -9 -8 -7 -------- Run | Yrd Mat Min Exi Min Mat Fac Total Allies . | . . . . . . . Largest Group . | . . . . . . . Highest-Rated Group . | . . . . . . . Highest-Rated Ally . | . . . . . . . Total Orders . | . . . . . . . Ally Attacks . | . . . . . . . Total Damage . | . . . . . . . Kills . | . . . . . . . Allies Corrupted . | . . . . . . . Allies Melted . | . . . . . . . Intel | -11 -10 -10 -10 -9 -8 -7 ------- Run | Yrd Mat Min Exi Min Mat Fac Robot Analysis Total . | . . . . . . . Derelict Logs Recovered 1 | . . 1 . . . . Drone Launches . | . . . . . . . Drone Recoveries . | . . . . . . . Exploration | -11 -10 -10 -10 -9 -8 -7 ------------- Run | Yrd Mat Min Exi Min Mat Fac Turns Passed 8272 | . 1281 1432 1701 82 2318 1458 Spaces Moved 3699 | 1 601 761 425 18 703 1190 Core 13 | . . . . . 9 4 Treads 1628 | . 253 761 425 18 171 . Legs 635 | 1 348 . . . 286 . Wheels 104 | . . . . . 104 . Hover 1297 | . . . . . 133 1164 Flight 22 | . . . . . . 22 Fastest Speed 43 | 120 120 160 160 480 110 43 Average Speed 177 | 120 171 172 396 480 235 67 Slowest Speed 900 | 120 190 240 480 480 900 350 Overloaded Moves . | . . . . . . . Propulsion Burnouts . | . . . . . . . Robots Hopped . | . . . . . . . Cave-ins Triggered . | . . . . . . . Exploration Rate (%) 49 | 2 94 99 70 11 48 25 Regions Visited 6 Branch Regions 3 Pre-discovered Areas 2 | . 1 . 1 . . . Known Exits Taken . | . . . . . . . Unknown Exits Taken 6 | 1 1 1 1 1 1 . Scrap Searched 1 | . . 1 . . . . Spaces Dug . | . . . . . . . Terrain Destroyed 23 | . 6 . . . 1 16 Melee . | . . . . . . . Projectile 2 | . . . . . 1 1 AOE 21 | . 6 . . . . 15 Terrain Rammed . | . . . . . . . Walls Destroyed . | . . . . . . . Machines Disabled . | . . . . . . . Actions | -11 -10 -10 -10 -9 -8 -7 --------- Run | Yrd Mat Min Exi Min Mat Fac Total 4675 | . 722 835 448 17 1043 1610 Wait 237 | . 10 37 . . 25 165 Move 3693 | . 600 760 424 17 702 1190 Hop . | . . . . . . . Pick Up 99 | . 10 7 17 . 14 51 Fast Attach 71 | . 8 . 1 . 41 21 Attach 24 | . 2 . . . 11 11 Detach 14 | . . . . . 6 8 Swap 29 | . 8 1 . . 5 15 Drop 68 | . 7 6 6 . 28 21 Fire 434 | . 76 23 . . 207 128 Melee . | . . . . . . . Ram . | . . . . . . . Kick . | . . . . . . . Crush 1 | . 1 . . . . . Escape Stasis . | . . . . . . . Rewire . | . . . . . . . Trap 5 | . . 1 . . 4 . Miscellaneous . | . . . . . . . Route ------- -11/Scrapyard -10/Materials (discovered 5 exits: *Mat x3 / *Min x2) -10/Mines (discovered 4 exits: *Mat x2 / *Exi / [*Sub]) -10/Exiles -9/Mines -8/Materials -7/Factory History --------- Turn | Location | Event 1 | -11/Scrapyard | Discovered new exit (range 0) 1 | -11/Scrapyard | Entered Materials 272 | -10/Materials | Discovered new exit (range 7) 313 | -10/Materials | Build established: Mutant 501 | -10/Materials | Discovered new exit (range 14) 660 | -10/Materials | Discovered new exit (range 12) 817 | -10/Materials | Core integrity fell below 50% 843 | -10/Materials | Lost 3 parts (2n1w) 1113 | -10/Materials | Discovered new exit (range 7) 1271 | -10/Materials | Discovered new exit (range 5) 1282 | -10/Materials | Entered Mines 1298 | -10/Mines | Met a Derelict bent on vengeance 1378 | -10/Mines | Discovered new exit (range 8) 1540 | -10/Mines | Found a hidden stash of uninstalled traps 1798 | -10/Mines | Core integrity fell below 20% 1830 | -10/Mines | Discovered new exit (range 15) 2101 | -10/Mines | Found the Drone Emporium 2149 | -10/Mines | Found Prototype Device 2450 | -10/Mines | Identified exit to Materials 2517 | -10/Mines | Discovered new exit (range 6) 2704 | -10/Mines | Deemed a non-threat by the Exiles lab entrance 2704 | -10/Mines | Discovered new exit (range 5) 2714 | -10/Mines | Entered Exiles 2811 | -10/Exiles | Met 8R-AWN 2844 | -10/Exiles | Met EX-HEX 2923 | -10/Exiles | Met EX-BIN 2950 | -10/Exiles | Aligned with FarCom system 2952 | -10/Exiles | Given EX-Vault access code 3007 | -10/Exiles | Opened EX-Vault 3110 | -10/Exiles | Found Modified TNC 3171 | -10/Exiles | Found Lightpack 2.0 3277 | -10/Exiles | Warned to stay clear of 0b10 Research branches 3407 | -10/Exiles | Met EX-DEC 3440 | -10/Exiles | Learned location of Zion (-7) 4362 | -10/Exiles | Discovered new exit (range 10) 4415 | -10/Exiles | Stole two prototypes: Lightpack 2.0, Modified TNC 4415 | -10/Exiles | Entered Mines 4444 | -9/Mines | Discovered new exit (range 13) 4497 | -9/Mines | Entered Materials 4497 | -8/Materials | Evolved 4 slots: Propulsion x2, Utility x2 5009 | -8/Materials | Destroyed 7 combat bots 5018 | -8/Materials | Lost 5 parts (1p1n2u1w) 5988 | -8/Materials | Core integrity fell below 50% 6126 | -8/Materials | Lost 5 parts (1p1n3u) 6298 | -8/Materials | Identified Bomb Drone Bay 6391 | -8/Materials | Garrison activated, responded to threat 6411 | -8/Materials | Core integrity fell below 20% 6464 | -8/Materials | Lost 5 parts (1p3n1w) 6738 | -8/Materials | Discovered new exit (range 14) 6815 | -8/Materials | Entered Factory 6815 | -7/Factory | Evolved 2 slots: Propulsion x1, Utility x1 6817 | -7/Factory | FarCom data flow suspended 6884 | -7/Factory | Build established: Scavenger-Mutant 7072 | -7/Factory | Lost 4 parts (2n2u) 7452 | -7/Factory | Build established: Hauler-Mutant 7777 | -7/Factory | Lost 4 parts (1p2n1u) 7820 | -7/Factory | Core integrity fell below 50% 7893 | -7/Factory | Lost 6 parts (1p3n1u1w) 8194 | -7/Factory | Core integrity fell below 20% 8251 | -7/Factory | Cargo convoy interrupted 8273 | -7/Factory | Destroyed by P-60 Hacker with Shock Rifle Last Messages --------------- 08250_ X-57 Shotgunner unfolds itself. 08250_ X-62 Marksman unfolds itself. 08250_ M-28 Smith unfolds itself. 08251_ ALERT: Cargo convoy interrupted, initiating access lockdown. 08251_ C-30 ARC bursts open, deploying its payload. 08251_ H-55 Commando unfolds itself. 08251_ P-60 Hacker unfolds itself. 08251_ H-55 Commando unfolds itself. 08251_ I-36 Angel unfolds itself. 08253_ ALERT: Hostiles spotted, dispatching reinforcements to Terminal F010. 08254_ Slug penetrates Wall. 08256_ K-01 Serf collects debris. 08267_ S-27 Virus destroyed. 08268_ Slug penetrates Wall. 08268_ K-01 Serf destroyed. 08269_ Imp. Airjet destroyed. 08272_ Prc. Beam Rifle destroyed. 08273_ O>MZ:1 SACQ2F&7N CM/C4ED4S< K/SY 08273_ Penetrated by Slug. 08273_ Imp. Airjet destroyed. Map ----- +----------------------------------------------------+ | ??????????????????????????????# # # | | ??????????????????????????????# """ """ # # | | ??????????????????????????????# """ """ + # | | ??????????????????????????????# """ """ # # | | ??????????????????????????????# # # | | ??????????????????????????????# """ # # | | ??????????????????????????????# "T" """ # # | | ??????????????????????????????# """ """ # # | | ??????????????????????????????# # # | | ??????????????????????????????############## # | | ??????????????????????????????# ! # # | | ??????????????????????????????# " # | | ?????????????????? ???????????#| # # | | ????????????????? ??????????# # # | | ?????????????????? ??????????# #[= # | | ????????????????? ?????????# #=% # | | ?????????????????? ?????????# /% + | | ???????????????"?""" ????????# # # | | ???????????????? """ ????????# # # | | ???????????? ???? " ???????# # # | | ???????????? !! "F" ???????# # % # | | ??????????? !! """ ??????# # # | | ??????????? ??????#####+######## "" # | | ?????????? ?????????# #??????#"%%" # | | ?????????? ########## #??????# "" # | | ?????????? @ %= px ######## ! * # | | ?????????? = p[ hh %[ # | | ?????????? #########+##########/### | | ??????????? ##??????? ????????=* ? | | ??????????? ?????????" "???????? | | ????????????############ ?????????" "???????""" "" | | ???????????????????????# ?????????" "???????""" "" | | ??????????????????????? ????????? ??????"""" "" | | ???????????????????????T ????????? ??????"""" "" | | ???????????????????????#??????????""T????????"" "" | | ??????????????????????????????????"""?????????? "" | | ??????????????????????????????????????????????? ? | | ??????????????????????????????????????????????? | | ???????????????????????????????????????????????? | | ???????????????????????????????????????????????? | | ?????????????????????????????????????????????#+##/ | | ?????????????????????????????????????????????# | | ?????????????????????????????????????????????# | | ?????????????????????????????????????????????# | | ??????????????????????????????????????????#### | | ??????????????????????????????????????????# | | ??????????????????????????????????????????# | | ??????????????????????????????????????????# | | ??????????????????????????????????????????# | | ??????????????????????????????????????????# ### | +----------------------------------------------------+ Best States ------------- Heat Dissipation 48 Energy Generation 18 Energy Capacity 265 Matter Stores 300 Matter Capacity 300 Sight Range 16 Terrain Scan Density 10 Additional Mass Support 9 Armor Coverage 600 Evasion (%) 63 Recoil Reduction 4 Offensive Hacking 10 Defensive Hacking 10 Item Schematics ----------------- None Robot Schematics ------------------ None Fabricated ------------ Nothing Alien Tech Used ----------------- None Achievements -------------- None Challenges ------------ None Game ------ Seed MagneticConcussiveFlail Manual? 0 Play Time 00:51:50 Cumulative 79.1 hours Start 2024.11.15 @ 05:41:01 End 2024.11.15 @ 06:32:31 Sessions 1 Manual Loads 0 Difficulty Rogue Special Mode None Game No. 137 Rogue 137 Adventurer 0 Explorer 0 Win Type - Total 0 Types 0/0/0/0/0/0/0/0/0 Lore% 41 Gallery% 36 Achievement% 34 Wizard Run 0 Options --------- Layout 0 ASCII 0 Keyboard 0 Movement Mouse Keybinds 0 Fullscreen 1 Font 24/Smallcaps Map View 183x50 Zoom Use 92% Tactical HUD 1 Map Filters NONE Filters NONE Steam 1 RUN: c3b3f5af-ac09-4c85-829d-edff8e838273